[Event "Rohde op 12th"]
[Site "Sautron"]
[Date "2012.11.01"]
[Round "7"]
[White "Karpatchev, Aleksandr"]
[Black "Riff, Jean Noel"]
[Result "1/2-1/2"]
[ECO "C05"]
[WhiteElo "2458"]
[BlackElo "2473"]
[Annotator "RR"]
[PlyCount "72"]
[EventDate "2012.10.27"]
[EventType "swiss"]
[EventRounds "9"]
[EventCountry "FRA"]
[SourceTitle "EXT 2014"]
[Source "ChessBase"]
[SourceDate "2013.11.20"]
[SourceVersion "1"]
[SourceVersionDate "2013.11.20"]
[SourceQuality "1"]
[TimeControl "40/5400+30:1800+30"]
[WhiteClock "1:30:00"]
[BlackClock "1:30:00"]

1. e4 {[%emt 0:00:00]} e6 {[%emt 0:00:00]} 2. d4 {[%emt 0:00:00]} d5 {[%emt 0:
00:00]} 3. Nd2 {[%emt 0:01:21]} Be7 {[%emt 0:00:19]} 4. Ngf3 {[%emt 0:01:30]}
Nf6 {[%emt 0:01:35]} 5. e5 {[%emt 0:00:45]} Nfd7 {[%emt 0:00:08]} 6. Bd3 {
[%emt 0:00:31]} c5 {[%emt 0:00:07]} 7. c3 {[%emt 0:00:04]} b6 {[%emt 0:00:04]}
(7... Nc6 {La grande ligne}) 8. O-O {[%emt 0:05:04]} Ba6 {[%emt 0:00:36]} 9.
Bxa6 {[%emt 0:03:42]} (9. Ne1 Bxd3 10. Nxd3 Nc6 11. Qg4 $14 {Adams,M (2694)
-Lemos,D (2556) Gibraltar Masters 8th 2010 (9) 1-0}) 9... Nxa6 {[%emt 0:00:23]}
10. Re1 {[%emt 0:06:37]} (10. Qe2 {[%cal Ge2a6]} Nc7 11. a4 O-O $11) 10... b5 {
[%emt 0:00:54]} 11. a4 {[%emt 0:17:23]} (11. a3 Qb6 12. Nf1 c4 13. h4 h6 14. h5
Nc7 15. Ng3 a5 16. Bd2 Qc6 17. Nh2 O-O-O 18. Qg4 Rhg8 19. Qh3 Kb7 20. Ng4 Rh8
21. f4 g6 22. Re2 Qb6 23. Nf1 b4 24. axb4 axb4 25. Nfe3 Ra8 {Timofeev,A (2658)
-Nepomniachtchi,I (2602)/Dresden 2007/CBM 118/1/2-1/2 (66)}) 11... b4 {[%emt 0:
01:01]} 12. c4 {[%emt 0:00:09]} Nc7 {[%emt 0:02:41]} 13. cxd5 $146 {[%emt 0:00:
28]} (13. b3 O-O {Andriasian,Z (2540)-Socko,B (2660) Rubinstein Memorial 39th
2007 (1) 1/2}) 13... Nxd5 {[%emt 0:04:34]} 14. Ne4 {[%emt 0:01:09][%csl Ge4]}
O-O {[%emt 0:01:48]} 15. a5 {[%emt 0:07:04]} Rc8 {[%emt 0:14:35]} 16. Bg5 $1 {
[%emt 0:04:40]} Bxg5 {[%emt 0:01:07]} 17. Nexg5 {[%emt 0:03:41]} h6 {[%emt 0:
06:22]} 18. Ne4 {[%emt 0:00:16]} c4 $1 $132 {[%emt 0:01:27][%csl Gc4][%cal
Gc4c3]} 19. Nd6 {[%emt 0:14:43]} Rc6 {[%emt 0:02:55]} 20. Qa4 {[%emt 0:00:54]}
Nb8 {[%emt 0:01:34]} 21. Nd2 {[%emt 0:11:02][%cal Gd2e4]} Qc7 {[%emt 0:04:32]}
(21... c3 22. bxc3 bxc3 23. N2c4) 22. N2e4 {[%emt 0:01:37]} a6 {[%emt 0:02:21]}
23. Nc5 {[%emt 0:01:36]} Rxd6 $5 {[%emt 0:02:31]} (23... Nd7) 24. exd6 {
[%emt 0:00:02]} Qxd6 {[%emt 0:00:05]} 25. Qc2 {[%emt 0:01:44]} c3 {[%emt 0:00:
19]} 26. bxc3 {[%emt 0:00:24]} (26. Ne4) 26... bxc3 {[%emt 0:00:01]} 27. Qd3 {
[%emt 0:00:49]} Nc6 {[%emt 0:04:48]} 28. Qxa6 {[%emt 0:07:10]} Ndb4 $1 {
[%emt 0:00:28]} 29. Qc4 {[%emt 0:06:05]} Nc2 {[%emt 0:00:31]} 30. Ne4 {[%emt 0:
01:31]} Qd5 {[%emt 0:01:12]} 31. Qxd5 {[%emt 0:01:33]} exd5 {[%emt 0:00:04]}
32. Nxc3 {[%emt 0:00:07]} Nxe1 {[%emt 0:00:04]} 33. Rxe1 {[%emt 0:00:19]} Ra8 {
[%emt 0:00:15]} 34. Ra1 {[%emt 0:01:18]} Rxa5 {[%emt 0:00:07]} 35. Rxa5 {
[%emt 0:00:05]} Nxa5 {[%emt 0:00:04]} 36. Nxd5 {[%emt 0:00:05]} Nc6 {[%emt 0:
00:03]} 1/2-1/2